bitfinex-derivatives/quotes_BTCF0:USTF0_20250318
["timestamp","ask_amount","ask_price","bid_price","bid_amount"]
[1742311832824,0.004,81916.0,81915.0,0.36417581]
[1742311833712,0.0125,81916.0,81915.0,0.36417581]
[1742311834215,0.0453,81916.0,81915.0,0.36417581]
[1742311834928,0.004,81916.0,81915.0,0.36417581]
[1742311837923,0.126086,81916.0,81915.0,0.36417581]
[1742311838425,0.234286,81916.0,81915.0,0.36417581]
[1742311839937,0.234286,81916.0,81915.0,0.19617581]
[1742311840122,0.234286,81916.0,81915.0,0.25137581]
[1742311840428,0.1122,81916.0,81915.0,0.25137581]
[1742311840630,0.004,81916.0,81915.0,0.30417581]
[1742311841031,9e-08,81916.0,81915.0,0.58181581]
[1742311841325,0.32387683,81924.0,81923.0,0.1220756]
[1742311841529,0.32387683,81924.0,81923.0,0.4828756]
[1742311841724,0.32387683,81924.0,81923.0,0.7193156]
[1742311842028,0.23807683,81924.0,81923.0,0.7193156]
[1742311842228,0.02739131,81924.0,81923.0,0.7193156]
[1742311842930,0.03139131,81924.0,81923.0,0.7193156]
[1742311843326,1e-08,81924.0,81923.0,0.5916756]
[1742311843628,3e-08,81926.0,81925.0,0.1220726]
[1742311843823,3e-08,81926.0,81925.0,0.4828726]
[1742311844128,3e-08,81926.0,81925.0,0.5361726]
[1742311844330,3e-08,81926.0,81925.0,0.6638126]
[1742311845228,1e-07,81932.0,81931.0,0.1220636]
[1742311845532,1e-07,81932.0,81931.0,0.6105036]
[1742311845726,1e-07,81932.0,81931.0,0.5913636]
[1742311845929,1e-07,81932.0,81931.0,0.7190036]
[1742311846429,1e-07,81932.0,81931.0,0.5913636]
[1742311846634,0.0318001,81932.0,81931.0,0.4828636]
[1742311847232,0.1000001,81932.0,81931.0,0.4828636]
[1742311847427,0.2220622,81932.0,81931.0,0.4828636]
[1742311847617,0.2220622,81932.0,81931.0,0.1220636]
[1742311847819,0.3276622,81932.0,81931.0,0.1220636]
[1742311848432,0.2806622,81932.0,81931.0,0.1220636]
[1742311848633,0.3276622,81932.0,81931.0,0.1220636]
[1742311849021,0.3552622,81932.0,81931.0,0.1220636]
[1742311849327,0.1220651,81930.0,81929.0,0.1830984]
[1742311849529,0.1220711,81926.0,81925.0,0.1220726]
[1742311849735,0.0610393,81921.0,81920.0,0.122077]
[1742311849928,0.1831193,81921.0,81920.0,0.1831162]
[1742311850431,0.2903193,81921.0,81920.0,0.1831162]
[1742311850730,0.2903193,81921.0,81920.0,0.5439162]
[1742311851136,0.2903193,81921.0,81920.0,0.1831162]
[1742311851438,0.1072,81921.0,81920.0,0.1831162]
[1742311851736,0.1072,81921.0,81920.0,0.5956162]
[1742311851922,0.1072,81921.0,81920.0,0.6495162]
[1742311852432,0.1082,81921.0,81920.0,0.6495162]
[1742311852636,0.1082,81921.0,81920.0,0.2887162]
[1742311852836,0.1082,81921.0,81920.0,0.6495162]
[1742311853030,0.1102,81921.0,81920.0,0.5956162]
[1742311853334,0.1132,81921.0,81920.0,0.5956162]
[1742311853531,0.1132,81921.0,81920.0,0.6495162]
[1742311854324,0.058,81921.0,81920.0,0.6495162]
[1742311854731,0.158,81921.0,81920.0,0.6495162]
[1742311854931,0.0898,81921.0,81920.0,0.5439162]
[1742311855139,0.1217,81921.0,81920.0,0.5439162]
[1742311855432,0.158,81921.0,81920.0,0.5439162]
[1742311855836,0.158,81921.0,81920.0,0.5969162]
[1742311856329,0.058,81921.0,81920.0,0.6485162]
[1742311856730,0.0898,81921.0,81920.0,0.6485162]
[1742311856926,0.058,81921.0,81920.0,0.6485162]
[1742311858539,0.1429,81921.0,81920.0,0.6485162]
[1742311858731,0.0899,81921.0,81920.0,0.6485162]
[1742311859435,0.158,81921.0,81920.0,0.6485162]
[1742311859637,0.0899,81921.0,81920.0,0.6485162]
[1742311859843,0.2800785,81921.0,81920.0,0.6485162]
[1742311860047,0.2800785,81921.0,81920.0,0.5439162]
[1742311860233,0.2800785,81921.0,81907.0,0.36098307]
[1742311860234,0.4188,81921.0,81907.0,0.36098307]
[1742311860432,0.1220979,81908.0,81907.0,0.00018307]
[1742311860943,0.2855979,81908.0,81907.0,0.12228247]
[1742311862241,0.1635,81908.0,81907.0,0.12228247]
[1742311862440,0.1635,81908.0,81907.0,0.17438247]
[1742311862441,0.1076,81908.0,81907.0,0.17438247]
[1742311862648,0.0546,81908.0,81907.0,0.23158247]
[1742311863151,0.0596,81908.0,81907.0,0.23158247]
[1742311863335,0.0596,81908.0,81907.0,0.17438247]
[1742311863650,0.1816979,81908.0,81907.0,0.12228247]
[1742311863849,0.1856979,81908.0,81907.0,0.12228247]
[1742311864044,0.1123,81908.0,81907.0,0.12228247]
[1742311864245,0.1163,81908.0,81907.0,0.12228247]
[1742311864445,0.1123,81908.0,81907.0,0.17438247]
[1742311864651,0.1173,81908.0,81907.0,0.17438247]
[1742311864954,0.1173,81908.0,81907.0,0.22898247]
[1742311866154,0.0636,81908.0,81907.0,0.22998247]
[1742311866352,0.0636,81908.0,81907.0,0.28568247]
[1742311867048,0.0586,81908.0,81907.0,0.28468247]
[1742311867356,0.0610352,81927.0,81907.0,0.28468247]
[1742311867357,0.7047666,81929.0,81928.0,0.1220681]
[1742311867539,0.6952666,81929.0,81928.0,0.05333242]
[1742311867739,0.7633666,81929.0,81928.0,0.05333242]
[1742311868143,0.6952666,81929.0,81927.0,0.04563421]
[1742311868342,0.0610359,81926.0,81913.0,0.0610448]
[1742311868546,0.183128,81919.0,81918.0,0.122083]
[1742311868746,0.410728,81919.0,81918.0,0.122083]
[1742311869554,0.2180365,81925.0,81923.0,0.1220756]
[1742311869555,0.0319,81924.0,81923.0,0.1220756]
[1742311869946,0.0981,81924.0,81923.0,0.1220756]
[1742311870155,0.0569,81924.0,81923.0,0.2322756]
[1742311870354,0.1789741,81924.0,81923.0,0.2322756]
[1742311870845,0.2789741,81924.0,81923.0,0.2322756]
[1742311871050,0.1569,81924.0,81923.0,0.2322756]
[1742311871250,0.0569,81924.0,81923.0,0.2322756]
[1742311871654,0.0579,81924.0,81923.0,0.2322756]
[1742311872058,0.0991,81924.0,81923.0,0.2322756]
[1742311872356,0.0981,81924.0,81923.0,0.24567742]
[1742311872550,0.0991,81924.0,81923.0,0.24567742]
[1742311872751,0.0991,81924.0,81923.0,0.13547742]
[1742311872954,0.122077,81922.0,81921.0,0.3608]
[1742311873254,0.183135,81914.0,81913.0,0.1220905]
[1742311873449,0.199035,81914.0,81913.0,0.5439357]
[1742311873646,0.199035,81914.0,81913.0,0.19651241]
[1742311873843,0.199035,81914.0,81913.0,0.0610452]
[1742311874045,0.1220934,81911.0,81910.0,0.0610469]
[1742311874353,0.1538934,81911.0,81910.0,0.1352363]
[1742311874543,0.2764934,81911.0,81910.0,0.1220949]
[1742311874745,0.2083934,81911.0,81910.0,0.1220949]
[1742311874946,0.2177934,81911.0,81910.0,0.1220949]
[1742311875145,0.1544,81911.0,81910.0,0.13533809]
[1742311875366,0.0544,81911.0,81910.0,0.24633809]
[1742311876055,0.1074,81911.0,81910.0,0.24633809]
[1742311876254,0.0544,81911.0,81910.0,0.24633809]
[1742311876469,0.0610341,81928.0,81921.0,0.1220785]
[1742311876647,0.0134006,81932.0,81921.0,0.1220785]
[1742311876648,0.153877,81922.0,81921.0,0.1220785]
[1742311876844,0.1220934,81911.0,81910.0,0.01324319]
[1742311877050,0.1379934,81911.0,81910.0,0.1220949]
[1742311877352,0.1379934,81911.0,81910.0,0.13535395]
[1742311877353,0.3228934,81911.0,81910.0,0.13535395]
[1742311877555,0.2008,81911.0,81910.0,0.13535395]
[1742311877867,0.0596,81911.0,81910.0,0.19275395]
[1742311878052,0.0596,81911.0,81910.0,0.60865395]
[1742311879159,0.1596,81911.0,81910.0,0.60865395]
[1742311879361,0.0914,81911.0,81910.0,0.60865395]
[1742311879662,0.1008,81911.0,81910.0,0.60865395]
[1742311880547,0.0924,81911.0,81910.0,0.60865395]
[1742311880750,0.104,81911.0,81910.0,0.60865395]
[1742311880954,0.004,81911.0,81910.0,0.60865395]
[1742311882460,0.0199,81911.0,81910.0,0.60865395]
[1742311883561,0.0358,81911.0,81910.0,0.60865395]
[1742311883761,0.1419934,81911.0,81907.0,0.00018307]
[1742311883957,0.2220979,81908.0,81907.0,0.00018307]
[1742311884151,0.1538979,81908.0,81907.0,0.00018307]
[1742311884354,0.2301979,81908.0,81907.0,0.00018307]
[1742311885260,0.2301979,81908.0,81907.0,0.12228247]
[1742311887052,0.2321979,81908.0,81907.0,0.12228247]
[1742311887668,0.2341979,81908.0,81907.0,0.12228247]
[1742311889156,0.1121,81908.0,81907.0,0.12228247]
[1742311889354,0.1121,81908.0,81907.0,0.53868247]
[1742311889556,0.1121,81908.0,81907.0,0.59368247]
[1742311889965,0.3341979,81908.0,81907.0,0.59368247]
[1742311890267,0.2977979,81908.0,81907.0,0.59368247]
[1742311890468,0.2977979,81908.0,81907.0,0.53868247]
[1742311890873,0.1533,81908.0,81907.0,0.53868247]
[1742311891267,0.0598,81908.0,81907.0,0.59428247]
[1742311891469,0.1598,81908.0,81907.0,0.64988247]
[1742311891672,0.2818979,81908.0,81907.0,0.64988247]
[1742311891870,0.2818979,81908.0,81907.0,0.48308247]
[1742311892075,0.2136979,81908.0,81907.0,0.48308247]
[1742311892373,0.2689979,81908.0,81907.0,0.48308247]
[1742311892575,0.3371979,81908.0,81907.0,0.48308247]
[1742311892876,0.2784979,81908.0,81907.0,0.36098307]
[1742311893266,0.2784979,81908.0,81907.0,0.48308247]
[1742311893576,0.3371979,81908.0,81907.0,0.48308247]
[1742311893963,0.2784979,81908.0,81907.0,0.48308247]
[1742311894162,0.2690979,81908.0,81907.0,0.48308247]
[1742311894365,0.1151,81908.0,81907.0,0.48308247]
[1742311894563,0.2151,81908.0,81907.0,0.53578247]
[1742311894870,0.2613979,81908.0,81907.0,0.53578247]
[1742311895977,0.2689979,81908.0,81907.0,0.53578247]
[1742311896174,0.2689979,81908.0,81907.0,0.48308247]
[1742311896372,0.3166979,81908.0,81907.0,7e-08]
[1742311896566,0.1221218,81892.0,81891.0,0.3608]
[1742311896763,0.1221322,81885.0,81884.0,0.4829337]
[1742311897170,0.2269322,81885.0,81884.0,0.4829337]
[1742311897372,0.2269322,81885.0,81884.0,0.3608]
[1742311897663,0.1221412,81879.0,81878.0,0.2375067]
[1742311898071,0.2275412,81879.0,81878.0,0.3596484]
[1742311898580,0.2265412,81879.0,81878.0,0.3596484]
[1742311898770,0.2813412,81879.0,81878.0,0.37259371]
[1742311899088,0.2813412,81879.0,81878.0,0.0543]
[1742311899380,0.1221441,81877.0,81876.0,0.12232717]
[1742311899762,0.2284441,81877.0,81876.0,0.00018307]
[1742311899966,0.06108,81869.0,81857.0,0.0563]
[1742311900173,0.0537,81868.0,81867.0,0.1221591]
[1742311900367,0.0537,81868.0,81867.0,0.2298591]
[1742311900577,0.12756,81875.0,81874.0,0.1221486]
[1742311900971,0.0548,81879.0,81878.0,0.1221427]
[1742311901176,0.12756,81886.0,81885.0,0.1221322]
[1742311901368,0.2496907,81886.0,81885.0,0.1784322]
[1742311901671,0.2596907,81886.0,81885.0,0.2319322]
[1742311902074,0.2596907,81886.0,81885.0,0.1756322]
[1742311902578,9e-08,81887.0,81886.0,0.1221307]
[1742311902878,0.11427172,81894.0,81893.0,0.1221203]
[1742311902879,0.11300874,81894.0,81893.0,0.1221203]
[1742311903070,0.11300874,81894.0,81893.0,0.6104803]
[1742311903278,0.11300874,81894.0,81893.0,0.7699803]
[1742311903477,0.12886876,81901.0,81899.0,0.0610556]
[1742311903679,0.12886876,81901.0,81900.0,0.5897098]
[1742311903868,0.12996876,81901.0,81900.0,0.7172698]
[1742311904068,0.09234296,81901.0,81900.0,0.72650664]
[1742311904281,6e-08,81901.0,81900.0,0.72650664]
[1742311904581,5e-08,81908.0,81907.0,0.1220994]
[1742311904773,5e-08,81908.0,81907.0,0.4828994]
[1742311905076,5e-08,81908.0,81907.0,0.6104594]
[1742311905469,5e-08,81908.0,81907.0,0.7183594]
[1742311906572,0.05440005,81908.0,81907.0,0.5907994]
[1742311906775,0.05940005,81908.0,81907.0,0.7193594]
[1742311906975,0.18149795,81908.0,81907.0,0.5917994]
[1742311907176,0.06440005,81908.0,81907.0,0.7193594]
[1742311907481,0.06340005,81908.0,81907.0,0.7183594]
[1742311907877,0.00900005,81908.0,81907.0,0.7183594]
[1742311908687,0.00900005,81908.0,81907.0,0.5907994]
[1742311908888,0.00900005,81908.0,81907.0,0.7183594]
[1742311910678,0.00900005,81908.0,81907.0,0.5907994]
[1742311910977,0.00900005,81908.0,81907.0,0.7183194]
[1742311911380,0.00900005,81908.0,81907.0,0.5907994]
[1742311911684,0.00900005,81908.0,81907.0,0.7183194]
[1742311912892,0.00900005,81908.0,81907.0,0.5907994]
[1742311913188,0.00900005,81908.0,81907.0,0.7183194]
[1742311915486,0.00900005,81908.0,81907.0,0.5907994]
[1742311915689,5e-08,81908.0,81907.0,0.5907994]
[1742311915983,5e-08,81908.0,81907.0,0.7183194]
[1742311916581,0.00500005,81908.0,81907.0,0.5907994]
[1742311916781,0.00500005,81908.0,81907.0,0.7183194]
[1742311917189,0.00500005,81908.0,81907.0,0.5907994]
[1742311917387,5e-08,81908.0,81907.0,0.7183194]
[1742311917579,0.003,81908.0,81907.0,0.7183194]
[1742311917785,0.005,81908.0,81907.0,0.7183194]
[1742311918183,0.002,81908.0,81907.0,0.7183194]
[1742311918379,0.1066,81915.0,81914.0,0.122089]
[1742311918678,0.1066,81915.0,81914.0,0.610409]
[1742311918878,0.2286875,81915.0,81914.0,0.665809]
[1742311919176,0.2604875,81915.0,81914.0,0.3608]
[1742311919381,0.3802875,81915.0,81914.0,0.3608]
[1742311919588,0.3121875,81915.0,81914.0,0.3608]
[1742311919886,0.1831461,81909.0,81908.0,0.1220966]
[1742311920086,0.1240979,81908.0,81907.0,0.4828994]
[1742311920288,0.2333979,81908.0,81907.0,0.4828994]
[1742311920591,0.1220994,81907.0,81906.0,0.00072]
[1742311920783,0.1221128,81898.0,81897.0,0.4829138]
[1742311921486,0.2827128,81898.0,81897.0,0.4829138]
[1742311921684,0.2827128,81898.0,81892.0,0.00018319]
[1742311921685,0.1221203,81893.0,81892.0,0.00018319]
[1742311921987,0.1221352,81883.0,81872.0,1.3089555]
[1742311922179,0.2442962,81878.0,81877.0,0.1221367]
[1742311922579,0.1221461,81878.0,81877.0,0.1221367]
[1742311922794,0.1065,81882.0,81881.0,0.1221382]
[1742311923291,0.1065,81882.0,81881.0,0.1785382]
[1742311923694,0.0525,81882.0,81881.0,0.1785382]
[1742311923886,0.0533,81883.0,81882.0,0.1221367]
[1742311924077,0.0533,81883.0,81882.0,0.2342367]
[1742311924281,0.0533,81883.0,81882.0,0.2372367]
[1742311925482,0.0533,81883.0,81882.0,0.2342367]
[1742311926997,9e-08,81886.0,81885.0,0.1221322]
[1742311927194,0.057,81896.0,81895.0,0.1221173]
[1742311927400,0.057,81896.0,81895.0,0.8437173]
[1742311927604,0.1098,81908.0,81895.0,0.8437173]
[1742311927605,0.1098,81908.0,81907.0,0.1220994]
[1742311927905,0.0412,81908.0,81907.0,0.4828994]
[1742311928288,0.0543,81914.0,81908.0,0.1220979]
[1742311928497,0.12821367,81916.0,81908.0,0.1220979]
[1742311928791,0.057,81913.0,81908.0,0.1220979]
[1742311929202,0.057,81913.0,81912.0,0.122092]
[1742311929383,0.04138319,81916.0,81915.0,0.1220875]
[1742311929589,0.00018319,81916.0,81915.0,0.4828875]
[1742311929788,0.00018319,81916.0,81915.0,0.49203985]
[1742311929990,9e-08,81916.0,81915.0,0.49203985]
[1742311930195,9e-08,81916.0,81915.0,0.61955985]
[1742311930593,0.00244134,81922.0,81921.0,0.1220785]
[1742311931190,0.00244134,81922.0,81921.0,0.2495985]
[1742311931386,0.00244134,81922.0,81921.0,0.1220785]
[1742311931786,0.00244134,81922.0,81921.0,0.2495585]
[1742311932296,0.00744134,81922.0,81921.0,0.2495585]
[1742311932494,0.11344379,81925.0,81924.0,0.1220741]
[1742311932685,0.11344379,81925.0,81924.0,0.4828741]
[1742311932888,0.04857909,81925.0,81924.0,0.4828741]
[1742311933091,0.2916054,81928.0,81927.0,0.1220696]
[1742311933487,0.2334676,81928.0,81927.0,0.2495496]
[1742311934285,0.1392121,81928.0,81927.0,0.1220696]
[1742311934496,0.0931312,81928.0,81927.0,0.1220696]
[1742311934696,0.0931312,81928.0,81927.0,0.2495496]
[1742311935001,0.04491949,81928.0,81927.0,0.2495496]
[1742311935796,0.04491949,81928.0,81927.0,0.1220696]
[1742311936202,0.00018319,81930.0,81929.0,0.1220666]
[1742311936500,0.00018319,81930.0,81929.0,0.6103466]
[1742311938200,0.00318319,81930.0,81929.0,0.6103466]
[1742311938702,0.01908319,81930.0,81929.0,0.4828666]
[1742311938908,0.17824829,81930.0,81929.0,0.4828666]
[1742311939096,0.15704829,81930.0,81929.0,0.4828666]
[1742311939601,0.15714829,81930.0,81929.0,0.4828666]
[1742311940403,0.15814829,81930.0,81929.0,0.4828666]
[1742311941397,0.22624829,81930.0,81929.0,0.4828666]
[1742311941596,0.10418319,81930.0,81929.0,0.4828666]
[1742311941796,0.00418319,81930.0,81929.0,0.4828666]
[1742311942401,0.10418319,81930.0,81929.0,0.4828666]
[1742311942606,0.00418319,81930.0,81929.0,0.4828666]
[1742311942911,0.06018319,81930.0,81929.0,0.4828666]
[1742311943400,0.06018319,81930.0,81929.0,0.6627066]
[1742311943999,0.16018319,81930.0,81929.0,0.6103066]
[1742311944195,0.16018319,81930.0,81929.0,0.4828666]
[1742311944397,0.28224829,81930.0,81929.0,0.4828666]
[1742311944607,0.12208,81920.0,81919.0,0.00064]
[1742311944791,0.12208,81920.0,81905.0,0.3608]
[1742311944792,0.1538845,81917.0,81905.0,0.3608]
[1742311944993,0.1220979,81908.0,81905.0,0.3608]
[1742311945196,0.1990476,81908.0,81907.0,0.1220994]
[1742311945505,0.2155497,81908.0,81907.0,0.1220994]
[1742311946105,0.2155497,81908.0,81907.0,0.13534295]
[1742311946294,0.1473497,81908.0,81907.0,0.13534295]
[1742311946494,0.2155497,81908.0,81907.0,0.13534295]
[1742311946806,0.1567497,81908.0,81907.0,0.1220994]
[1742311947195,0.1567497,81908.0,81907.0,0.13495376]
[1742311947598,0.1027,81908.0,81907.0,0.13495376]
[1742311947905,0.0615,81908.0,81907.0,0.13495376]
[1742311948311,0.0615,81908.0,81907.0,0.24175376]
[1742311948801,0.0615,81908.0,81907.0,0.36919376]
[1742311949600,0.11060542,81926.0,81925.0,0.1220726]
[1742311949799,0.23267652,81926.0,81925.0,0.4828726]
[1742311950207,0.21940542,81926.0,81925.0,0.4828726]
[1742311950596,0.34147652,81926.0,81925.0,0.4828726]
[1742311950803,0.22440542,81926.0,81925.0,0.4828726]
[1742311951499,0.34947652,81926.0,81925.0,0.4828726]
[1742311951694,0.22740542,81926.0,81925.0,0.4828726]
[1742311952101,0.22740542,81926.0,81925.0,0.5869726]
[1742311952704,0.1168,81926.0,81925.0,0.5869726]
[1742311953199,0.06441669,81926.0,81925.0,0.5869726]
[1742311953607,0.06141669,81926.0,81925.0,0.7144126]
[1742311954312,0.05741669,81926.0,81925.0,0.7144126]
[1742311954610,0.05741669,81926.0,81925.0,0.5869726]
[1742311954808,0.05741669,81926.0,81925.0,0.7144126]
[1742311955607,0.05741669,81926.0,81925.0,0.4828726]
[1742311955912,0.27848779,81926.0,81925.0,0.4828726]
[1742311956212,0.22468779,81926.0,81925.0,0.4828726]
[1742311956407,0.27938779,81926.0,81925.0,0.4828726]
[1742311956602,0.33818779,81926.0,81925.0,0.4828726]
[1742311956911,0.33718779,81926.0,81925.0,0.4828726]
[1742311957306,0.26898779,81926.0,81925.0,0.4828726]
[1742311957501,0.26498779,81926.0,81925.0,0.4828726]
[1742311957808,0.26898779,81926.0,81925.0,0.4828726]
[1742311958011,0.32198779,81926.0,81925.0,0.4828726]
[1742311958211,0.32198779,81926.0,81925.0,0.3608]
[1742311958212,0.26898779,81926.0,81925.0,0.3608]
[1742311958408,0.26898779,81926.0,81917.0,0.00018319]
[1742311958409,0.0610408,81919.0,81917.0,0.00018319]
[1742311958605,0.288083,81918.0,81917.0,0.00018319]
[1742311958805,0.329383,81918.0,81917.0,1.119e-05]
[1742311959011,0.388083,81918.0,81917.0,1.119e-05]
[1742311959612,0.5101675,81918.0,81916.0,0.6049698]
[1742311959813,0.388083,81918.0,81917.0,0.1220845]
[1742311960512,0.332383,81918.0,81917.0,0.1220845]
[1742311960717,0.269,81918.0,81917.0,0.4828845]
[1742311961026,0.332283,81918.0,81917.0,0.4828845]
[1742311961812,0.269,81918.0,81917.0,0.4828845]
[1742311962014,0.169,81918.0,81917.0,0.4828845]
[1742311962318,0.0609,81918.0,81917.0,0.7203245]
[1742311962513,0.0609,81918.0,81917.0,0.5928845]
[1742311962719,0.0609,81918.0,81917.0,0.6458845]
[1742311963021,0.0559,81918.0,81917.0,0.7733245]
[1742311963316,0.00018319,81930.0,81925.0,0.1220726]
[1742311963511,2e-08,81926.0,81925.0,0.4828726]
[1742311963704,2e-08,81926.0,81925.0,0.7215126]
[1742311964209,1e-08,81930.0,81929.0,0.1220666]
[1742311964414,1e-08,81930.0,81929.0,1.3699066]
[1742311964614,1e-08,81930.0,81929.0,1.4811066]
[1742311964822,1e-08,81930.0,81929.0,1.6085466]
[1742311965818,1e-08,81930.0,81929.0,1.4811066]
[1742311966025,1e-08,81930.0,81929.0,1.6085466]
[1742311967219,0.01590001,81930.0,81929.0,1.4811066]
[1742311967408,0.22206511,81930.0,81929.0,1.4811066]
[1742311967610,0.03190001,81930.0,81929.0,1.4811066]
[1742311967817,0.10000001,81930.0,81929.0,1.4811066]
[1742311968023,0.03190001,81930.0,81929.0,1.4811066]
[1742311968219,0.10000001,81930.0,81929.0,1.4811066]
[1742311968411,0.27466511,81930.0,81929.0,1.3699066]
[1742311969122,0.15260001,81930.0,81929.0,1.3699066]
[1742311969322,0.15260001,81930.0,81929.0,1.4805066]
[1742311970013,1e-08,81930.0,81929.0,1.4805066]
[1742311970917,1e-08,81930.0,81929.0,1.6079066]
[1742311978633,1e-08,81930.0,81928.0,0.061034]
[1742311978634,0.1220741,81924.0,81923.0,0.3608]
[1742311978928,0.01590001,81930.0,81922.0,0.1220764]
[1742311978929,0.2831171,81923.0,81922.0,0.1220764]
[1742311979134,0.3871171,81923.0,81922.0,0.1220764]
[1742311979932,0.3871171,81923.0,81922.0,0.4828764]
[1742311979933,0.3190171,81923.0,81922.0,0.4828764]
[1742311980228,0.2063386,81923.0,81922.0,0.4828764]
[1742311980817,0.2673756,81923.0,81922.0,0.4828764]
[1742311981026,0.3260756,81923.0,81922.0,0.4828764]
[1742311981225,0.2674756,81923.0,81922.0,0.4828764]
[1742311981427,0.2260756,81923.0,81922.0,0.4828764]
[1742311981622,0.1555,81923.0,81922.0,0.1220764]
[1742311981825,0.1015,81923.0,81922.0,0.5874764]
[1742311982736,0.05370001,81930.0,81929.0,0.1220666]
[1742311982930,0.15370001,81930.0,81929.0,0.4828666]
[1742311983130,0.08550001,81930.0,81929.0,0.5337666]
[1742311983834,0.17946511,81930.0,81929.0,0.4828666]
[1742311984336,0.38256511,81930.0,81929.0,0.4828666]
[1742311985131,0.31446511,81930.0,81929.0,0.4828666]
[1742311985640,0.31446511,81930.0,81928.0,0.061034]
[1742311985641,0.0610375,81924.0,81909.0,0.36098319]
[1742311985824,0.1220949,81910.0,81909.0,0.48307959]
[1742311986124,0.1220949,81910.0,81909.0,0.36098319]
[1742311986326,0.2765949,81910.0,81909.0,0.36098319]
[1742311986738,0.2765949,81910.0,81909.0,0.12227959]
[1742311986940,0.1545,81910.0,81909.0,0.12227959]
[1742311987242,0.1025,81910.0,81909.0,0.12227959]
[1742311987538,0.052,81919.0,81918.0,0.122083]
[1742311987738,0.1021,81919.0,81918.0,0.585483]
[1742311987960,0.0501,81919.0,81918.0,0.585483]
[1742311988132,0.0524,81925.0,81924.0,0.1220741]
[1742311988530,0.1744726,81925.0,81924.0,0.1764741]
[1742311988939,0.1744726,81925.0,81924.0,0.18939921]
[1742311989136,0.0524,81925.0,81924.0,0.18939921]
[1742311989344,0.0524,81925.0,81924.0,0.24149921]
[1742311989539,0.2292726,81925.0,81924.0,0.24149921]
[1742311989731,0.2342726,81925.0,81924.0,0.1220741]
[1742311990835,0.3392726,81925.0,81924.0,0.1220741]
[1742311991441,0.3342726,81925.0,81924.0,0.1220741]
[1742311991739,0.2661726,81925.0,81924.0,0.1220741]
[1742311991942,0.3392726,81925.0,81924.0,0.1220741]
[1742311992140,0.1585,81925.0,81924.0,0.1220741]
[1742311992347,0.1172,81925.0,81924.0,0.1220741]
[1742311992641,0.1172,81925.0,81924.0,0.2227741]
[1742311993639,0.01,81925.0,81924.0,0.3501741]
[1742311993836,0.01,81925.0,81924.0,0.2227741]
[1742311994036,0.01,81925.0,81924.0,0.3501741]
[1742311994446,0.1320726,81925.0,81924.0,0.1220741]
[1742311994646,0.1270726,81925.0,81924.0,0.1220741]
[1742311994842,0.2336726,81925.0,81924.0,0.1220741]
[1742311995038,0.1116,81925.0,81924.0,0.1220741]
[1742311995247,0.1116,81925.0,81924.0,0.2249741]
[1742311995545,1e-08,81930.0,81929.0,0.1220666]
[1742311995746,1e-08,81930.0,81929.0,0.5857666]
[1742311996052,0.12206511,81930.0,81929.0,0.4828666]
[1742311996345,0.12206511,81930.0,81928.0,0.061034]
[1742311996346,0.1220696,81927.0,81926.0,0.0610353]
[1742311996846,0.1747696,81927.0,81926.0,0.0610353]
[1742311997048,0.1074,81927.0,81926.0,0.0610353]
[1742311997248,0.1074,81927.0,81926.0,0.2935353]
[1742311997441,0.0527,81927.0,81926.0,0.2935353]
[1742311997643,1e-08,81930.0,81926.0,0.2935353]
[1742311997644,1e-08,81930.0,81929.0,0.1220666]
[1742311997843,1e-08,81930.0,81929.0,0.4828666]
[1742311998039,1e-08,81930.0,81929.0,0.5879666]
[1742311998548,0.00500001,81930.0,81929.0,0.57685135]
[1742311999248,0.00500001,81930.0,81929.0,0.70421135]
[1742311999249,1e-08,81930.0,81929.0,0.70421135]
[1742311999939,1e-08,81930.0,81929.0,0.85421135]
[1742312000545,0.00018319,81938.0,81937.0,0.1220547]
[1742312000844,0.30757328,81941.0,81940.0,0.1220502]
[1742312001043,0.25053008,81941.0,81940.0,0.4828502]
[1742312001442,0.25053008,81941.0,81940.0,0.6102102]
[1742312001745,0.25053008,81941.0,81940.0,0.4828502]
[1742312001938,0.25053008,81941.0,81940.0,0.6102102]
[1742312002247,0.25353008,81941.0,81940.0,0.61924178]
[1742312002551,0.06508988,81941.0,81940.0,0.61924178]
[1742312003045,8e-08,81941.0,81940.0,0.61924178]
[1742312003252,8e-08,81941.0,81940.0,0.49188178]
[1742312003745,8e-08,81941.0,81940.0,0.61924178]
[1742312003946,8e-08,81941.0,81940.0,0.49188178]
[1742312004339,8e-08,81941.0,81940.0,0.76924178]
[1742312005150,8e-08,81941.0,81940.0,0.49188178]
[1742312006544,0.1744176,81962.0,81940.0,0.49188178]
[1742312006545,0.060995,81981.0,81970.0,0.0610023]
[1742312006845,0.04012853,81985.0,81952.0,0.6101578]
[1742312006846,0.0777,81977.0,81976.0,0.1219966]
[1742312007236,0.0364,81977.0,81976.0,0.1219966]
[1742312007443,0.0777,81977.0,81976.0,0.1219966]
[1742312007652,0.0364,81977.0,81976.0,0.1219966]
[1742312008445,0.0689,81980.0,81979.0,0.1219922]
[1742312008649,0.0811,81980.0,81979.0,0.49541739]
[1742312010246,0.1699,81980.0,81979.0,0.49541739]
[1742312010751,0.2918907,81980.0,81979.0,0.49541739]
[1742312010951,0.2236907,81980.0,81979.0,0.49541739]
[1742312011448,0.082,81980.0,81979.0,0.49541739]
[1742312011647,0.0699,81980.0,81979.0,0.49541739]
[1742312011848,0.001,81980.0,81979.0,0.49541739]
[1742312012749,1e-07,81980.0,81979.0,0.49541739]
[1742312012944,1e-07,81980.0,81979.0,0.53021739]
[1742312013348,7e-08,81985.0,81984.0,0.1219847]
[1742312013643,7e-08,81985.0,81984.0,0.6100647]
[1742312014248,7e-08,81985.0,81984.0,0.6467647]
[1742312014853,0.01273336,82017.0,81984.0,0.6467647]
[1742312014854,0.09996007,82000.0,81999.0,0.1219624]
[1742312015048,0.05298247,82000.0,81999.0,1.8574024]
[1742312015252,7e-08,82000.0,81999.0,3.4314024]
[1742312017154,7e-08,82000.0,81999.0,1.9314024]
[1742312017654,7e-08,82000.0,81999.0,1.7301224]
[1742312017848,0.10000007,82000.0,81999.0,1.7301224]
[1742312018157,7e-08,82000.0,81999.0,1.7301224]
[1742312018750,0.10000007,82000.0,81999.0,1.7301224]
[1742312019056,0.15386097,82000.0,81999.0,1.7301224]
[1742312019254,0.28216097,82000.0,81999.0,1.60816]
[1742312019556,0.28216097,82000.0,81999.0,1.7301224]
[1742312019557,0.32906097,82000.0,81999.0,1.7301224]
[1742312019954,0.10710007,82000.0,81999.0,1.7301224]
[1742312020452,0.22906097,82000.0,81999.0,1.7301224]
[1742312021154,0.20710007,82000.0,81999.0,1.7301224]
[1742312021456,0.22906097,82000.0,81999.0,1.7301224]
[1742312021948,0.10710007,82000.0,81999.0,1.7301224]